[Event "*** Titled Tuesday Blitz"]
[Site "Chess.com"]
[Date "2020.10.20"]
[Round "5"]
[White "dosto07"]
[Black "WiktoriaPOL"]
[Result "1-0"]
[WhiteElo "2330"]
[BlackElo "2057"]
[TimeControl "180+1"]
[EndTime "10:56:34 PDT"]
[Termination "dosto07 won by resignation"]

1. e4 {[%clk 0:03:00.9]} 1... c5 {[%clk 0:02:59.6]} 2. Nf3 {[%clk 0:02:59.8]}
2... g6 {[%clk 0:02:59.2]} 3. d4 {[%clk 0:02:59.1]} 3... cxd4 {[%clk 0:02:59.5]}
4. Qxd4 {[%clk 0:02:59.6]} 4... Nf6 {[%clk 0:02:59.1]} 5. Nc3 {[%clk 0:02:59.8]}
5... Nc6 {[%clk 0:02:55.2]} 6. Qa4 {[%clk 0:02:59.9]} 6... d6 {[%clk 0:02:53]}
7. e5 {[%clk 0:02:59.7]} 7... dxe5 {[%clk 0:02:53.1]} 8. Nxe5 {[%clk 0:03:00.3]}
8... Bg7 {[%clk 0:02:51.3]} 9. Nxc6 {[%clk 0:02:58.5]} 9... bxc6 {[%clk
0:02:51.2]} 10. Qxc6+ {[%clk 0:02:57.9]} 10... Bd7 {[%clk 0:02:51.6]} 11. Qf3
{[%clk 0:02:56.9]} 11... Bg4 {[%clk 0:02:46.8]} 12. Bb5+ {[%clk 0:02:42.2]}
12... Kf8 {[%clk 0:02:37.6]} 13. Qg3 {[%clk 0:02:33.6]} 13... Ne4 {[%clk
0:02:27.4]} 14. Qxg4 {[%clk 0:02:18.4]} 14... Nxc3 {[%clk 0:02:25.2]} 15. Bd3
{[%clk 0:02:15.8]} 15... h5 {[%clk 0:02:14.1]} 16. Qf3 {[%clk 0:02:14.5]} 16...
Nd5 {[%clk 0:02:08.8]} 17. O-O {[%clk 0:02:11.8]} 17... Kg8 {[%clk 0:02:07]} 18.
Be4 {[%clk 0:02:10.3]} 18... e6 {[%clk 0:02:06.1]} 19. Rd1 {[%clk 0:02:08.8]}
19... Qa5 {[%clk 0:02:04.4]} 20. Bxd5 {[%clk 0:02:05.8]} 20... exd5 {[%clk
0:02:03.8]} 21. Qxd5 {[%clk 0:02:03]} 21... Qxd5 {[%clk 0:01:59.8]} 22. Rxd5
{[%clk 0:02:02.7]} 22... Re8 {[%clk 0:02:00.4]} 23. Be3 {[%clk 0:01:59.8]} 23...
Bxb2 {[%clk 0:01:59.4]} 24. Rb1 {[%clk 0:01:59.7]} 24... Bc3 {[%clk 0:01:44.8]}
25. Bxa7 {[%clk 0:01:46.3]} 25... Kg7 {[%clk 0:01:42.8]} 26. Rd7 {[%clk
0:01:40.2]} 26... Re2 {[%clk 0:01:41]} 27. g3 {[%clk 0:01:17.2]} 27... Rxc2
{[%clk 0:01:39.9]} 28. Rc7 {[%clk 0:01:16.7]} 28... Rb2 {[%clk 0:01:37.1]} 29.
Rxb2 {[%clk 0:01:06.2]} 29... Bxb2 {[%clk 0:01:35.9]} 30. a4 {[%clk 0:01:05.8]}
30... Ra8 {[%clk 0:01:34.9]} 31. a5 {[%clk 0:01:02.4]} 31... Be5 {[%clk
0:01:32.3]} 32. Rb7 {[%clk 0:01:00.4]} 32... Kf6 {[%clk 0:01:27.1]} 33. Kf1
{[%clk 0:00:56.7]} 33... Ke6 {[%clk 0:01:26.9]} 34. Ke2 {[%clk 0:00:50.1]} 34...
f5 {[%clk 0:01:25.4]} 35. Kd3 {[%clk 0:00:37.3]} 35... Kd5 {[%clk 0:01:22.5]}
36. Rb5+ {[%clk 0:00:33.7]} 36... Kd6 {[%clk 0:01:20.1]} 37. Bb8+ {[%clk
0:00:28.7]} 37... Kc6 {[%clk 0:01:16.5]} 38. Rb6+ {[%clk 0:00:26.1]} 38... Kd5
{[%clk 0:01:13.1]} 39. Bxe5 {[%clk 0:00:20.5]} 39... Kxe5 {[%clk 0:01:12.5]} 40.
f4+ {[%clk 0:00:21]} 40... Kd5 {[%clk 0:01:12]} 41. a6 {[%clk 0:00:21.4]} 41...
Kc5 {[%clk 0:01:11.2]} 42. Rxg6 {[%clk 0:00:20.7]} 42... Kd5 {[%clk 0:01:09.2]}
43. Rf6 {[%clk 0:00:19.5]} 43... Kc5 {[%clk 0:01:05.7]} 44. Rxf5+ {[%clk
0:00:19.3]} 44... Kd6 {[%clk 0:01:04.9]} 45. Rf6+ {[%clk 0:00:20.2]} 45... Kd5
{[%clk 0:01:04.6]} 46. Rh6 {[%clk 0:00:20]} 46... Kc5 {[%clk 0:01:03.1]} 47.
Rxh5+ {[%clk 0:00:19.3]} 47... Kd6 {[%clk 0:01:02.8]} 48. Rh6+ {[%clk
0:00:20.2]} 1-0

[Event "*** Titled Tuesday Blitz"]
[Site "Chess.com"]
[Date "2020.10.20"]
[Round "5"]
[White "maximnovik"]
[Black "Chessmatus"]
[Result "1-0"]
[WhiteElo "2517"]
[BlackElo "2347"]
[TimeControl "180+1"]
[EndTime "10:56:35 PDT"]
[Termination "maximnovik won by checkmate"]

1. d4 {[%clk 0:02:50.9]} 1... Nf6 {[%clk 0:02:59.9]} 2. Bg5 {[%clk 0:02:48.4]}
2... Ne4 {[%clk 0:02:59.3]} 3. Bh4 {[%clk 0:02:48]} 3... c5 {[%clk 0:02:57.2]}
4. f3 {[%clk 0:02:48.4]} 4... g5 {[%clk 0:02:57.2]} 5. fxe4 {[%clk 0:02:48.4]}
5... gxh4 {[%clk 0:02:57.2]} 6. e3 {[%clk 0:02:48.9]} 6... Bh6 {[%clk
0:02:56.8]} 7. Kf2 {[%clk 0:02:49.1]} 7... Nc6 {[%clk 0:02:52.7]} 8. Qh5 {[%clk
0:02:46.3]} 8... Qb6 {[%clk 0:02:20.5]} 9. Bc4 {[%clk 0:02:43.6]} 9... Rf8
{[%clk 0:01:50.7]} 10. Qxh6 {[%clk 0:02:35.8]} 10... Qxb2 {[%clk 0:01:48.4]} 11.
Ne2 {[%clk 0:02:29.6]} 11... Qxa1 {[%clk 0:01:33.7]} 12. Nbc3 {[%clk 0:02:27.6]}
12... Qb2 {[%clk 0:01:31.5]} 13. Rb1 {[%clk 0:01:51.2]} 13... Qxc2 {[%clk
0:01:27.1]} 14. Bb3 {[%clk 0:01:48.5]} 14... Qd3 {[%clk 0:01:24.3]} 15. Rd1
{[%clk 0:01:42.8]} 15... Qa6 {[%clk 0:01:19.8]} 16. Nd5 {[%clk 0:01:42.3]} 16...
Qa5 {[%clk 0:01:20.1]} 17. dxc5 {[%clk 0:01:30.5]} 17... Ne5 {[%clk 0:00:43.6]}
18. Qh5 {[%clk 0:01:28.5]} 18... Ng6 {[%clk 0:00:38.7]} 19. Nd4 {[%clk 0:01:18]}
19... Kd8 {[%clk 0:00:29.8]} 20. Qh6 {[%clk 0:01:05.7]} 20... Qxc5 {[%clk
0:00:24.7]} 21. Nf5 {[%clk 0:01:00.1]} 21... Re8 {[%clk 0:00:20.4]} 22. Ng7
{[%clk 0:00:49.3]} 22... Rg8 {[%clk 0:00:18.7]} 23. Nf5 {[%clk 0:00:44.8]} 23...
b6 {[%clk 0:00:18.5]} 24. Qxh7 {[%clk 0:00:40.7]} 24... Rf8 {[%clk 0:00:18.9]}
25. Qg7 {[%clk 0:00:37.4]} 25... Ke8 {[%clk 0:00:15.2]} 26. Nfxe7 {[%clk
0:00:34.3]} 26... Bb7 {[%clk 0:00:12.9]} 27. Nf6+ {[%clk 0:00:30.2]} 27... Kxe7
{[%clk 0:00:11.9]} 28. Rxd7# {[%clk 0:00:29.2]} 1-0

[Event "*** Titled Tuesday Blitz"]
[Site "Chess.com"]
[Date "2020.10.20"]
[Round "5"]
[White "TC2304"]
[Black "kleopl"]
[Result "0-1"]
[WhiteElo "2265"]
[BlackElo "2453"]
[TimeControl "180+1"]
[EndTime "10:56:36 PDT"]
[Termination "kleopl won on time"]

1. d4 {[%clk 0:03:00.9]} 1... Nf6 {[%clk 0:02:59.3]} 2. Bg5 {[%clk 0:03:01]}
2... c5 {[%clk 0:02:56.7]} 3. Nc3 {[%clk 0:03:01]} 3... cxd4 {[%clk 0:02:54.7]}
4. Qxd4 {[%clk 0:03:01.9]} 4... Nc6 {[%clk 0:02:54.8]} 5. Qh4 {[%clk 0:03:02.6]}
5... Qb6 {[%clk 0:02:50]} 6. O-O-O {[%clk 0:03:02.1]} 6... d6 {[%clk 0:02:38]}
7. e4 {[%clk 0:03:01.6]} 7... Ng4 {[%clk 0:02:28.3]} 8. Nh3 {[%clk 0:02:30.9]}
8... h6 {[%clk 0:02:23.8]} 9. Nd5 {[%clk 0:02:28.4]} 9... Qa5 {[%clk 0:02:16.9]}
10. Kb1 {[%clk 0:02:12.6]} 10... Nge5 {[%clk 0:02:11.8]} 11. f4 {[%clk
0:02:00.8]} 11... Ng6 {[%clk 0:02:09.3]} 12. Qh5 {[%clk 0:01:59.4]} 12... hxg5
{[%clk 0:02:09]} 13. Qxg5 {[%clk 0:01:54.2]} 13... Bxh3 {[%clk 0:02:01.1]} 14.
Bb5 {[%clk 0:01:41.6]} 14... Qd8 {[%clk 0:01:38.3]} 15. gxh3 {[%clk 0:01:36]}
15... e6 {[%clk 0:01:37.3]} 16. Qg3 {[%clk 0:01:14.4]} 16... a6 {[%clk
0:01:36.8]} 17. Bxc6+ {[%clk 0:01:08.7]} 17... bxc6 {[%clk 0:01:37.7]} 18. f5
{[%clk 0:01:07.1]} 18... Ne5 {[%clk 0:01:33.6]} 19. Nf4 {[%clk 0:01:03.2]} 19...
exf5 {[%clk 0:01:28]} 20. exf5 {[%clk 0:01:00.8]} 20... Qh4 {[%clk 0:01:26.3]}
21. Qe3 {[%clk 0:00:50.2]} 21... Be7 {[%clk 0:01:24.1]} 22. Rhg1 {[%clk
0:00:33.7]} 22... Qf6 {[%clk 0:01:22]} 23. Qe4 {[%clk 0:00:19.7]} 23... Rb8
{[%clk 0:01:19.4]} 24. c3 {[%clk 0:00:18.5]} 24... Rh4 {[%clk 0:01:16]} 25. Rgf1
{[%clk 0:00:15.3]} 25... Kf8 {[%clk 0:01:09.5]} 26. Ka1 {[%clk 0:00:14.4]} 26...
Kg8 {[%clk 0:01:09.1]} 27. Qa4 {[%clk 0:00:14.1]} 27... Qg5 {[%clk 0:01:00.2]}
28. Rd4 {[%clk 0:00:10.3]} 28... c5 {[%clk 0:00:57]} 29. Re4 {[%clk 0:00:09.4]}
29... Qxf5 {[%clk 0:00:54.4]} 30. Qc2 {[%clk 0:00:02.6]} 30... Bf6 {[%clk
0:00:48.3]} 31. Qe2 {[%clk 0:00:01.7]} 31... Qg5 {[%clk 0:00:41.4]} 0-1

[Event "*** Titled Tuesday Blitz"]
[Site "Chess.com"]
[Date "2020.10.20"]
[Round "5"]
[White "AungTZ"]
[Black "mjray79"]
[Result "0-1"]
[WhiteElo "2135"]
[BlackElo "2394"]
[TimeControl "180+1"]
[EndTime "10:56:37 PDT"]
[Termination "mjray79 won by resignation"]

1. e4 {[%clk 0:02:48.1]} 1... e5 {[%clk 0:02:59.9]} 2. Nf3 {[%clk 0:02:47.3]}
2... Nc6 {[%clk 0:02:59.8]} 3. d4 {[%clk 0:02:48.2]} 3... exd4 {[%clk
0:02:59.4]} 4. Nxd4 {[%clk 0:02:49.1]} 4... Nf6 {[%clk 0:02:58]} 5. Nc3 {[%clk
0:02:49.2]} 5... Bb4 {[%clk 0:02:57.5]} 6. Nxc6 {[%clk 0:02:48.7]} 6... bxc6
{[%clk 0:02:58.4]} 7. Bd3 {[%clk 0:02:48.9]} 7... d5 {[%clk 0:02:57]} 8. exd5
{[%clk 0:02:49.8]} 8... cxd5 {[%clk 0:02:57.2]} 9. O-O {[%clk 0:02:49.5]} 9...
O-O {[%clk 0:02:55]} 10. Bg5 {[%clk 0:02:48.7]} 10... c6 {[%clk 0:02:54.2]} 11.
h3 {[%clk 0:02:48.3]} 11... Rb8 {[%clk 0:02:50.2]} 12. Qf3 {[%clk 0:02:47.1]}
12... Be7 {[%clk 0:02:49.2]} 13. Rab1 {[%clk 0:02:46.3]} 13... Nd7 {[%clk
0:02:47.5]} 14. Bd2 {[%clk 0:02:40.1]} 14... Ne5 {[%clk 0:02:44.8]} 15. Qe2
{[%clk 0:02:38.5]} 15... Nxd3 {[%clk 0:02:44.2]} 16. Qxd3 {[%clk 0:02:36.9]}
16... Bf6 {[%clk 0:02:42.6]} 17. Na4 {[%clk 0:02:27.7]} 17... Qd6 {[%clk
0:02:33.3]} 18. b4 {[%clk 0:02:14.8]} 18... g6 {[%clk 0:02:10]} 19. Bc3 {[%clk
0:02:10.4]} 19... Bf5 {[%clk 0:02:08.5]} 20. Qd2 {[%clk 0:02:07.6]} 20... d4
{[%clk 0:02:08.1]} 21. Ba1 {[%clk 0:01:56]} 21... Qd5 {[%clk 0:01:56.5]} 22. Nc5
{[%clk 0:01:34.4]} 22... Qxa2 {[%clk 0:01:42.7]} 23. Rfc1 {[%clk 0:01:02.6]}
23... a5 {[%clk 0:01:34.5]} 24. Bxd4 {[%clk 0:00:49.2]} 24... Rfd8 {[%clk
0:01:12.5]} 25. Ra1 {[%clk 0:00:37.2]} 25... Qc4 {[%clk 0:01:09.4]} 26. c3
{[%clk 0:00:32.3]} 26... axb4 {[%clk 0:01:01.1]} 27. Na6 {[%clk 0:00:28.9]}
27... Rbc8 {[%clk 0:00:47.2]} 28. Ra4 {[%clk 0:00:09.2]} 28... bxc3 {[%clk
0:00:45.1]} 29. Rxc4 {[%clk 0:00:07.6]} 29... cxd2 {[%clk 0:00:44.9]} 30. Rd1
{[%clk 0:00:08]} 30... Rxd4 {[%clk 0:00:43.6]} 31. Rxd4 {[%clk 0:00:05.7]} 31...
Bxd4 {[%clk 0:00:44.5]} 32. Rxd2 {[%clk 0:00:06.2]} 32... c5 {[%clk 0:00:44.9]}
0-1

[Event "*** Titled Tuesday Blitz"]
[Site "Chess.com"]
[Date "2020.10.20"]
[Round "5"]
[White "chessplayer9919"]
[Black "K_A_S_T_O_R"]
[Result "0-1"]
[WhiteElo "2612"]
[BlackElo "2827"]
[TimeControl "180+1"]
[EndTime "10:56:39 PDT"]
[Termination "K_A_S_T_O_R won on time"]

1. e4 {[%clk 0:03:00.9]} 1... c5 {[%clk 0:02:59.8]} 2. Nc3 {[%clk 0:02:58.5]}
2... d6 {[%clk 0:02:59.6]} 3. f4 {[%clk 0:02:57.9]} 3... g6 {[%clk 0:02:59]} 4.
Nf3 {[%clk 0:02:56.8]} 4... Bg7 {[%clk 0:02:59.2]} 5. Bc4 {[%clk 0:02:57.1]}
5... Nc6 {[%clk 0:02:58.8]} 6. O-O {[%clk 0:02:55]} 6... e6 {[%clk 0:02:58.9]}
7. d4 {[%clk 0:02:50.7]} 7... cxd4 {[%clk 0:02:57.6]} 8. Nb5 {[%clk 0:02:50.7]}
8... Nge7 {[%clk 0:02:58.1]} 9. Bb3 {[%clk 0:02:49.8]} 9... O-O {[%clk
0:02:54.9]} 10. Nbxd4 {[%clk 0:02:47.5]} 10... Na5 {[%clk 0:02:53.8]} 11. Be3
{[%clk 0:02:44.3]} 11... a6 {[%clk 0:02:52.4]} 12. Qe1 {[%clk 0:02:39.8]} 12...
b5 {[%clk 0:02:50.1]} 13. Qh4 {[%clk 0:01:58.5]} 13... Nxb3 {[%clk 0:02:31.2]}
14. axb3 {[%clk 0:01:54.5]} 14... Bd7 {[%clk 0:02:26.2]} 15. Rad1 {[%clk
0:01:42.7]} 15... f6 {[%clk 0:01:47.6]} 16. Qh3 {[%clk 0:00:45.5]} 16... Qc8
{[%clk 0:01:45.3]} 17. e5 {[%clk 0:00:42.2]} 17... Nd5 {[%clk 0:01:43.9]} 18.
Bc1 {[%clk 0:00:39.1]} 18... fxe5 {[%clk 0:01:20.8]} 19. fxe5 {[%clk 0:00:34.1]}
19... dxe5 {[%clk 0:01:18.3]} 20. Ng5 {[%clk 0:00:34.4]} 20... Rxf1+ {[%clk
0:01:03.8]} 21. Rxf1 {[%clk 0:00:33.2]} 21... h6 {[%clk 0:01:03.2]} 22. Nf7
{[%clk 0:00:14.7]} 22... h5 {[%clk 0:00:46]} 23. Nf3 {[%clk 0:00:03.3]} 23...
Nf4 {[%clk 0:00:35.2]} 24. Bxf4 {[%clk 0:00:03.1]} 24... exf4 {[%clk 0:00:36.1]}
25. N7g5 {[%clk 0:00:04]} 25... e5 {[%clk 0:00:35.7]} 26. Qh4 {[%clk 0:00:03.6]}
26... Bf6 {[%clk 0:00:35.4]} 27. g3 {[%clk 0:00:02.6]} 27... Bg4 {[%clk
0:00:33.6]} 28. gxf4 {[%clk 0:00:02.6]} 28... exf4 {[%clk 0:00:34.1]} 0-1

[Event "*** Titled Tuesday Blitz"]
[Site "Chess.com"]
[Date "2020.10.20"]
[Round "5"]
[White "Evachess2006"]
[Black "FMalexhdez"]
[Result "0-1"]
[WhiteElo "1637"]
[BlackElo "2267"]
[TimeControl "180+1"]
[EndTime "10:56:39 PDT"]
[Termination "FMalexhdez won by resignation"]

1. e4 {[%clk 0:03:00]} 1... c5 {[%clk 0:02:11.6]} 2. c3 {[%clk 0:02:56.7]} 2...
d6 {[%clk 0:02:12.2]} 3. d4 {[%clk 0:02:53.3]} 3... cxd4 {[%clk 0:02:13.1]} 4.
cxd4 {[%clk 0:02:53.2]} 4... g6 {[%clk 0:02:13.8]} 5. Nf3 {[%clk 0:02:52.5]}
5... Bg7 {[%clk 0:02:14.7]} 6. g3 {[%clk 0:02:50.8]} 6... Nc6 {[%clk 0:02:15.3]}
7. Bg2 {[%clk 0:02:49.8]} 7... Nf6 {[%clk 0:02:15.1]} 8. Nc3 {[%clk 0:02:47.3]}
8... O-O {[%clk 0:02:14.3]} 9. O-O {[%clk 0:02:43.9]} 9... d5 {[%clk 0:02:14.6]}
10. e5 {[%clk 0:02:39]} 10... Ne4 {[%clk 0:02:14.3]} 11. Nxe4 {[%clk 0:02:19.1]}
11... dxe4 {[%clk 0:02:14]} 12. Ng5 {[%clk 0:02:18.5]} 12... Qxd4 {[%clk
0:02:10.1]} 13. Qxd4 {[%clk 0:02:02.2]} 13... Nxd4 {[%clk 0:02:09.1]} 14. Be3
{[%clk 0:01:51.9]} 14... Nc2 {[%clk 0:02:08]} 15. Rac1 {[%clk 0:01:49.5]} 15...
Nxe3 {[%clk 0:02:07.7]} 16. fxe3 {[%clk 0:01:47.4]} 16... Bxe5 {[%clk
0:02:08.1]} 17. Bxe4 {[%clk 0:01:32.2]} 17... Bxb2 {[%clk 0:02:07]} 18. Rc7
{[%clk 0:01:27.7]} 18... Bf6 {[%clk 0:02:04.2]} 19. h4 {[%clk 0:01:20.7]} 19...
Rb8 {[%clk 0:01:52.4]} 20. Bd5 {[%clk 0:01:15]} 20... Bxg5 {[%clk 0:01:45.6]}
21. hxg5 {[%clk 0:01:13.9]} 21... e6 {[%clk 0:01:41.6]} 22. Bc4 {[%clk
0:01:11.2]} 22... b6 {[%clk 0:01:40.8]} 23. Bb3 {[%clk 0:01:05.9]} 23... Rb7
{[%clk 0:01:36.6]} 24. Rxb7 {[%clk 0:01:04.5]} 24... Bxb7 {[%clk 0:01:36.2]} 25.
Rf6 {[%clk 0:01:02.6]} 25... Kg7 {[%clk 0:01:33.4]} 26. Kf2 {[%clk 0:01:01.9]}
26... h6 {[%clk 0:01:33.3]} 27. Rf4 {[%clk 0:00:53.4]} 27... hxg5 {[%clk
0:01:32.8]} 28. Rg4 {[%clk 0:00:53]} 28... Kf6 {[%clk 0:01:30]} 29. e4 {[%clk
0:00:49.9]} 29... Rd8 {[%clk 0:01:29.4]} 30. Ke3 {[%clk 0:00:49.1]} 30... Ba6
{[%clk 0:01:22.7]} 31. Bc2 {[%clk 0:00:47.7]} 31... Bf1 {[%clk 0:01:20.8]} 32.
e5+ {[%clk 0:00:45.7]} 32... Kxe5 {[%clk 0:01:20]} 33. Rxg5+ {[%clk 0:00:44.3]}
33... Kf6 {[%clk 0:01:15.7]} 34. Rg4 {[%clk 0:00:43.3]} 34... Bh3 {[%clk
0:01:15.2]} 35. Rf4+ {[%clk 0:00:42.8]} 35... Ke7 {[%clk 0:01:14.8]} 36. Rh4
{[%clk 0:00:41.6]} 36... Bf5 {[%clk 0:01:14.4]} 37. Bxf5 {[%clk 0:00:38.7]}
37... gxf5 {[%clk 0:01:13.5]} 38. Ra4 {[%clk 0:00:39]} 38... a5 {[%clk
0:01:12.6]} 39. Rc4 {[%clk 0:00:35.4]} 39... Rd5 {[%clk 0:01:12.4]} 40. Rc7+
{[%clk 0:00:34.2]} 40... Kf6 {[%clk 0:01:11.7]} 41. Rb7 {[%clk 0:00:33.1]} 41...
Rb5 {[%clk 0:01:11.6]} 42. a4 {[%clk 0:00:29]} 42... Rb4 {[%clk 0:01:11.6]} 43.
Kf3 {[%clk 0:00:26.8]} 43... Ke5 {[%clk 0:01:07.3]} 44. Rxf7 {[%clk 0:00:26.3]}
44... Rxa4 {[%clk 0:01:07]} 45. Rb7 {[%clk 0:00:24.8]} 45... Rb4 {[%clk
0:01:06.6]} 46. Rc7 {[%clk 0:00:15.4]} 46... a4 {[%clk 0:01:06.3]} 47. Rc3
{[%clk 0:00:15.9]} 47... Rb3 {[%clk 0:01:05.7]} 0-1

[Event "*** Titled Tuesday Blitz"]
[Site "Chess.com"]
[Date "2020.10.20"]
[Round "5"]
[White "Smirnov_Pavel"]
[Black "ArjunErigaisi2003"]
[Result "0-1"]
[WhiteElo "2874"]
[BlackElo "3044"]
[TimeControl "180+1"]
[EndTime "10:56:41 PDT"]
[Termination "ArjunErigaisi2003 won by resignation"]

1. d4 {[%clk 0:03:00.9]} 1... f5 {[%clk 0:02:58.2]} 2. g3 {[%clk 0:02:59.5]}
2... Nf6 {[%clk 0:02:57]} 3. Bg2 {[%clk 0:02:59.9]} 3... g6 {[%clk 0:02:57.7]}
4. Nf3 {[%clk 0:03:00.1]} 4... Bg7 {[%clk 0:02:58.4]} 5. O-O {[%clk 0:03:00.7]}
5... O-O {[%clk 0:02:59]} 6. c4 {[%clk 0:03:01]} 6... d6 {[%clk 0:02:58.4]} 7.
Nc3 {[%clk 0:03:00.6]} 7... c6 {[%clk 0:02:57.3]} 8. b3 {[%clk 0:02:58.5]} 8...
Qc7 {[%clk 0:02:52.4]} 9. Bb2 {[%clk 0:02:54.7]} 9... e5 {[%clk 0:02:50.7]} 10.
dxe5 {[%clk 0:02:27.9]} 10... dxe5 {[%clk 0:02:51.6]} 11. e4 {[%clk 0:02:28.2]}
11... Na6 {[%clk 0:02:36.3]} 12. Qe2 {[%clk 0:02:20.1]} 12... f4 {[%clk
0:02:33.4]} 13. Rad1 {[%clk 0:02:03.3]} 13... Nh5 {[%clk 0:02:21.9]} 14. Ba3
{[%clk 0:01:59.1]} 14... Re8 {[%clk 0:02:15.3]} 15. Bd6 {[%clk 0:01:55]} 15...
Qf7 {[%clk 0:02:01.6]} 16. Rd3 {[%clk 0:01:46]} 16... h6 {[%clk 0:01:56.7]} 17.
b4 {[%clk 0:01:17]} 17... Qxc4 {[%clk 0:01:42.1]} 18. Rfd1 {[%clk 0:00:25.3]}
18... Nxb4 {[%clk 0:01:21.7]} 19. Bxb4 {[%clk 0:00:25.6]} 19... Qxb4 {[%clk
0:01:22.6]} 20. Nh4 {[%clk 0:00:26]} 20... Kh7 {[%clk 0:01:15.4]} 21. a3 {[%clk
0:00:13.2]} 21... Qe7 {[%clk 0:01:06]} 22. Rd6 {[%clk 0:00:11.5]} 22... Bf6
{[%clk 0:01:06]} 23. Nf5 {[%clk 0:00:09.9]} 23... Qf7 {[%clk 0:01:01.8]} 24. Bf3
{[%clk 0:00:09.1]} 24... Ng7 {[%clk 0:00:58.6]} 25. Nxg7 {[%clk 0:00:07.2]}
25... Qxg7 {[%clk 0:00:59.5]} 26. Bg4 {[%clk 0:00:06.7]} 26... Bxg4 {[%clk
0:00:52.7]} 27. Qxg4 {[%clk 0:00:07.6]} 27... Rad8 {[%clk 0:00:53.4]} 28. Rd7
{[%clk 0:00:07.3]} 28... Rxd7 {[%clk 0:00:53.5]} 29. Rxd7 {[%clk 0:00:07.9]}
29... Re7 {[%clk 0:00:54.1]} 30. Rd6 {[%clk 0:00:08.1]} 30... Rf7 {[%clk
0:00:49.7]} 31. h4 {[%clk 0:00:06.7]} 31... h5 {[%clk 0:00:47.9]} 32. Qe6 {[%clk
0:00:06.6]} 32... fxg3 {[%clk 0:00:45.1]} 33. fxg3 {[%clk 0:00:07.5]} 33... Be7
{[%clk 0:00:45.2]} 34. Kg2 {[%clk 0:00:06.9]} 34... Bxd6 {[%clk 0:00:44.7]} 0-1

[Event "*** Titled Tuesday Blitz"]
[Site "Chess.com"]
[Date "2020.10.20"]
[Round "5"]
[White "Pikachess999"]
[Black "catzapto"]
[Result "1-0"]
[WhiteElo "2349"]
[BlackElo "2147"]
[TimeControl "180+1"]
[EndTime "10:56:42 PDT"]
[Termination "Pikachess999 won by checkmate"]

1. e4 {[%clk 0:03:00.9]} 1... c5 {[%clk 0:03:00.1]} 2. a3 {[%clk 0:02:59.1]}
2... Nc6 {[%clk 0:02:59.7]} 3. b4 {[%clk 0:02:59.1]} 3... cxb4 {[%clk
0:03:00.6]} 4. axb4 {[%clk 0:03:00]} 4... Nxb4 {[%clk 0:02:58.3]} 5. c3 {[%clk
0:02:59.5]} 5... Nc6 {[%clk 0:02:58.6]} 6. d4 {[%clk 0:03:00.4]} 6... d5 {[%clk
0:02:58.1]} 7. exd5 {[%clk 0:03:01.3]} 7... Qxd5 {[%clk 0:02:57.8]} 8. Na3
{[%clk 0:03:01.9]} 8... e5 {[%clk 0:02:40]} 9. Nb5 {[%clk 0:03:01.6]} 9... Qd8
{[%clk 0:02:35.2]} 10. d5 {[%clk 0:03:01.1]} 10... Nb8 {[%clk 0:02:17.1]} 11. d6
{[%clk 0:02:52.3]} 11... Na6 {[%clk 0:02:07]} 12. Rxa6 {[%clk 0:02:51.8]} 12...
bxa6 {[%clk 0:02:07.4]} 13. Nc7+ {[%clk 0:02:51.7]} 13... Kd7 {[%clk 0:02:08.1]}
14. Nxa8 {[%clk 0:02:39.9]} 14... Bxd6 {[%clk 0:02:08.4]} 15. Qg4+ {[%clk
0:01:41.7]} 15... Ke8 {[%clk 0:01:41.3]} 16. Qa4+ {[%clk 0:01:10]} 16... Ke7
{[%clk 0:01:28.4]} 17. Bxa6 {[%clk 0:00:51]} 17... Bxa6 {[%clk 0:01:27.5]} 18.
Qxa6 {[%clk 0:00:51.9]} 18... Qxa8 {[%clk 0:01:27.7]} 19. Nf3 {[%clk 0:00:52.5]}
19... Qe4+ {[%clk 0:01:06.4]} 20. Be3 {[%clk 0:00:51.4]} 20... Qb1+ {[%clk
0:01:03.6]} 21. Ke2 {[%clk 0:00:51.7]} 21... Qxh1 {[%clk 0:01:01.9]} 22. Qb7+
{[%clk 0:00:46]} 22... Kf6 {[%clk 0:00:43.5]} 23. Qd7 {[%clk 0:00:35.3]} 23...
g6 {[%clk 0:00:09]} 24. Qxd6+ {[%clk 0:00:33.2]} 24... Kg7 {[%clk 0:00:09.4]}
25. Qxe5+ {[%clk 0:00:32.2]} 25... f6 {[%clk 0:00:09.3]} 26. Qc7+ {[%clk
0:00:31.6]} 26... Kf8 {[%clk 0:00:09.9]} 27. Bc5+ {[%clk 0:00:30]} 27... Ke8
{[%clk 0:00:10.5]} 28. Qc8+ {[%clk 0:00:24.7]} 28... Kf7 {[%clk 0:00:09.9]} 29.
Qd7+ {[%clk 0:00:24.9]} 29... Ne7 {[%clk 0:00:08.5]} 30. Qxe7+ {[%clk 0:00:25]}
30... Kg8 {[%clk 0:00:09.4]} 31. Qf8# {[%clk 0:00:25.5]} 1-0

[Event "*** Titled Tuesday Blitz"]
[Site "Chess.com"]
[Date "2020.10.20"]
[Round "5"]
[White "KerryStead"]
[Black "anon569"]
[Result "0-1"]
[WhiteElo "2017"]
[BlackElo "2261"]
[TimeControl "180+1"]
[EndTime "10:56:42 PDT"]
[Termination "anon569 won on time"]

1. d4 {[%clk 0:02:58.9]} 1... Nf6 {[%clk 0:02:59.4]} 2. f3 {[%clk 0:02:58.6]}
2... e6 {[%clk 0:03:00.3]} 3. e4 {[%clk 0:02:58.3]} 3... b6 {[%clk 0:02:52.4]}
4. Be3 {[%clk 0:02:41.6]} 4... d6 {[%clk 0:02:50.8]} 5. Qd2 {[%clk 0:02:40.7]}
5... Bb7 {[%clk 0:02:49.7]} 6. c4 {[%clk 0:02:39.8]} 6... Nbd7 {[%clk
0:02:48.7]} 7. Ne2 {[%clk 0:02:35.7]} 7... g6 {[%clk 0:02:44.3]} 8. a4 {[%clk
0:02:33.2]} 8... a5 {[%clk 0:02:38.4]} 9. Na3 {[%clk 0:02:15]} 9... Bg7 {[%clk
0:02:36.5]} 10. Nc3 {[%clk 0:02:14.1]} 10... Qe7 {[%clk 0:02:32.7]} 11. O-O-O
{[%clk 0:01:49.4]} 11... O-O {[%clk 0:02:12.9]} 12. g4 {[%clk 0:01:39.1]} 12...
Nb8 {[%clk 0:01:47.1]} 13. Be2 {[%clk 0:01:24]} 13... Nc6 {[%clk 0:01:39]} 14.
h4 {[%clk 0:01:21.4]} 14... h5 {[%clk 0:01:24.5]} 15. Rdg1 {[%clk 0:00:42.9]}
15... hxg4 {[%clk 0:00:51.7]} 16. fxg4 {[%clk 0:00:40.4]} 16... Nh7 {[%clk
0:00:52]} 17. g5 {[%clk 0:00:31.2]} 17... e5 {[%clk 0:00:49.5]} 18. d5 {[%clk
0:00:29.8]} 18... Nd4 {[%clk 0:00:49.4]} 19. Bg4 {[%clk 0:00:24.7]} 19... Nb3+
{[%clk 0:00:48.2]} 20. Kc2 {[%clk 0:00:22.4]} 20... Nxd2 {[%clk 0:00:48.6]} 21.
Kxd2 {[%clk 0:00:22.9]} 21... f5 {[%clk 0:00:47.2]} 22. gxf6 {[%clk 0:00:22.5]}
22... Rxf6 {[%clk 0:00:39.7]} 23. h5 {[%clk 0:00:13.9]} 23... g5 {[%clk
0:00:36.2]} 24. Ne2 {[%clk 0:00:07.6]} 24... Bc8 {[%clk 0:00:31.8]} 0-1